bitfinex-derivatives/quotes_BTCF0:USTF0_20241130
["timestamp","ask_amount","ask_price","bid_price","bid_amount"]
[1732951868867,0.0616899,96830.0,96828.0,0.06482989]
[1732951872483,0.0616899,96830.0,96828.0,0.01321589]
[1732951888202,0.0616899,96830.0,96828.0,0.19855015]
[1732951888799,0.0616899,96830.0,96829.0,0.18533426]
[1732951889202,0.0616899,96830.0,96828.0,0.01321589]
[1732951890509,0.051614,96829.0,96828.0,0.01221589]
[1732951890702,0.051614,96828.0,96827.0,0.29942518]
[1732951890908,0.0010769,96830.0,96829.0,0.051614]
[1732951891104,0.0090769,96830.0,96829.0,0.051614]
[1732951891413,0.0080769,96830.0,96829.0,0.051614]
[1732951891598,0.0090769,96830.0,96829.0,0.051614]
[1732951892099,0.0090769,96830.0,96829.0,0.30042418]
[1732951892303,0.0080769,96830.0,96829.0,0.052614]
[1732951892511,0.0090769,96830.0,96829.0,0.052614]
[1732951907809,0.0090769,96830.0,96829.0,0.07327582]
[1732951910806,0.0090769,96830.0,96829.0,0.43407582]
[1732951918810,0.0090769,96830.0,96829.0,0.56547582]
[1732951919318,0.0090769,96830.0,96829.0,0.38246182]
[1732951919521,0.0090769,96830.0,96829.0,0.51386182]
[1732951920822,0.0090769,96830.0,96829.0,0.38246182]
[1732951921022,0.0090769,96830.0,96829.0,0.51386182]
[1732951921723,0.0090769,96830.0,96829.0,0.15306182]
[1732951925716,0.0090769,96830.0,96829.0,0.1324]
[1732951934029,0.0090769,96830.0,96829.0,0.38019655]
[1732951934332,0.0090769,96830.0,96829.0,0.1324]
[1732951934725,0.0090769,96830.0,96829.0,0.38019655]
[1732951934924,0.0090769,96830.0,96829.0,0.1324]
[1732951935123,0.051604,96847.0,96842.0,0.051606]
[1732951935326,0.051604,96847.0,96845.0,0.60857715]
[1732951935628,0.0618,96853.0,96842.0,0.13128]
[1732951935629,0.051606,96844.0,96842.0,0.13128]
[1732951936031,6.13e-05,96843.0,96842.0,0.13128]
[1732951936432,6.13e-05,96843.0,96842.0,0.37891017]
[1732951936819,6.13e-05,96843.0,96842.0,0.37991017]
[1732951937628,6.13e-05,96843.0,96842.0,0.38191017]
[1732951937919,6.13e-05,96843.0,96842.0,0.38291017]
[1732951938126,0.0050613,96843.0,96842.0,0.13328]
[1732951938323,0.0050613,96843.0,96842.0,0.38091017]
[1732951939428,0.0050613,96843.0,96842.0,0.13328]
[1732951939631,0.0050613,96843.0,96842.0,0.14534873]
[1732951945651,0.0050613,96843.0,96842.0,0.33091107]
[1732951945950,0.0050613,96843.0,96842.0,0.14534873]
[1732951947934,0.0566673,96843.0,96842.0,0.14534873]
[1732951948322,0.0566673,96843.0,96842.0,0.19695573]
[1732951948534,0.0050613,96843.0,96842.0,0.55775573]
[1732951948737,0.412401,96854.0,96842.0,0.55775573]
[1732951949031,0.412401,96854.0,96853.0,0.2371241]
[1732951949238,0.412401,96854.0,96853.0,0.3684041]
[1732951949636,0.412401,96854.0,96853.0,0.182881]
[1732951950532,0.412401,96854.0,96853.0,0.191881]
[1732951950935,0.412401,96854.0,96853.0,0.199881]
[1732951951338,0.412401,96854.0,96853.0,0.14828]
[1732951955850,0.051601,96854.0,96853.0,0.14828]
[1732951959543,0.051601,96854.0,96853.0,0.3338031]
[1732951960744,0.051601,96854.0,96853.0,0.14828]
[1732951966437,0.051601,96854.0,96853.0,0.017]
[1732951969449,0.051601,96854.0,96853.0,0.20268425]
[1732951971244,0.051601,96854.0,96853.0,0.017]
[1732951973051,0.051601,96854.0,96853.0,0.20271121]
[1732951973845,0.051601,96854.0,96853.0,0.017]
[1732951983758,0.182761,96854.0,96853.0,0.009]
[1732951983954,0.182761,96854.0,96853.0,0.017]
[1732951984565,0.182761,96854.0,96853.0,0.009]
[1732951984865,0.182761,96854.0,96853.0,0.017]
[1732951985564,0.543561,96854.0,96853.0,0.017]
[1732951987250,0.543561,96854.0,96840.0,0.05380586]
[1732951987251,0.051607,96841.0,96840.0,0.05380586]
[1732951987454,0.05161,96836.0,96835.0,0.131]
[1732951988055,0.05161,96836.0,96835.0,0.14349033]
[1732951989058,0.05261,96836.0,96835.0,0.14449033]
[1732951990669,0.05261,96836.0,96835.0,0.3300684]
[1732951990856,0.06061,96836.0,96835.0,0.3310684]
[1732951991057,0.06061,96836.0,96835.0,0.14549033]
[1732951991252,0.06061,96836.0,96835.0,0.01449033]
[1732951993458,0.06061,96836.0,96835.0,0.002]
[1732951994568,0.06061,96836.0,96835.0,0.18757807]
[1732951995554,0.06061,96836.0,96835.0,0.002]
[1732951996586,0.051616,96825.0,96824.0,0.18557807]
[1732951996793,0.3608,96826.0,96823.0,0.18557807]
[1732951996997,0.051616,96824.0,96823.0,0.18557807]
[1732951997196,0.051617,96823.0,96822.0,0.18557807]
[1732951997492,0.05162,96818.0,96817.0,0.24736931]
[1732951997686,0.05162,96818.0,96817.0,0.25938]
[1732951998174,0.05162,96818.0,96817.0,0.01201069]
[1732951998374,0.05162,96817.0,96816.0,0.3330434]
[1732951998569,0.05162,96817.0,96816.0,0.08567409]
[1732951999871,0.05262,96817.0,96816.0,0.08567409]
[1732952001166,0.05462,96817.0,96816.0,0.08567409]
[1732952002290,0.05462,96817.0,96816.0,0.09780109]
[1732952005090,0.05462,96817.0,96816.0,0.08567409]
[1732952005297,0.05462,96817.0,96816.0,0.27120118]
[1732952005498,0.05462,96817.0,96816.0,0.08567409]
[1732952005703,0.05462,96817.0,96816.0,0.27120118]
[1732952006292,0.05462,96817.0,96816.0,0.08567409]
[1732952012204,0.41542,96817.0,96816.0,0.08567409]
[1732952013103,0.051621,96815.0,96814.0,0.01223216]
[1732952013306,0.051622,96813.0,96812.0,0.13112369]
[1732952014807,0.051622,96813.0,96812.0,0.13212369]
[1732952015211,0.051622,96813.0,96812.0,0.31764708]
[1732952015417,0.051622,96813.0,96812.0,0.13212369]
[1732952015802,0.051622,96813.0,96812.0,0.00108369]
[1732952016201,0.052622,96813.0,96812.0,0.00108369]
[1732952023194,0.052622,96813.0,96812.0,0.248453]
[1732952023785,0.052622,96813.0,96812.0,0.00108369]
[1732952023989,0.052622,96813.0,96812.0,0.248453]
[1732952024296,0.052622,96813.0,96812.0,0.00108369]
[1732952025295,0.052622,96813.0,96812.0,0.248453]
[1732952026193,0.052622,96813.0,96812.0,0.24883483]
[1732952028199,0.052622,96813.0,96812.0,0.24887362]
[1732952029294,0.052622,96813.0,96812.0,0.24888638]
[1732952029499,0.052622,96813.0,96812.0,0.00108369]
[1732952029893,0.052622,96813.0,96812.0,0.24888638]
[1732952030089,0.052622,96813.0,96812.0,0.00108369]
[1732952030991,0.052622,96813.0,96812.0,0.24890391]
[1732952031195,0.052622,96813.0,96812.0,0.00108369]
[1732952042098,0.061622,96813.0,96812.0,0.00108369]
[1732952042490,0.061622,96813.0,96812.0,8.369e-05]
[1732952042696,0.063622,96813.0,96812.0,0.00108369]
[1732952043398,0.064622,96813.0,96812.0,0.00108369]
[1732952047406,0.064622,96813.0,96812.0,0.24903574]
[1732952047608,0.064622,96813.0,96812.0,0.00108369]
[1732952048205,0.064622,96813.0,96812.0,0.24903326]
[1732952048400,0.064622,96813.0,96812.0,0.00108369]
[1732952048602,0.064622,96813.0,96812.0,0.24903326]
[1732952049007,0.064622,96813.0,96812.0,0.00108369]
[1732952050799,0.064622,96813.0,96812.0,0.24903421]
[1732952051403,0.064622,96813.0,96812.0,0.00108369]
[1732952051606,0.064622,96813.0,96812.0,0.2490432]
[1732952052111,0.064622,96813.0,96812.0,0.24904054]
[1732952052697,0.064622,96813.0,96812.0,0.00108369]
[1732952053097,0.064622,96813.0,96812.0,0.24903615]
[1732952053304,0.064622,96813.0,96812.0,0.00108369]
[1732952057312,0.013,96813.0,96812.0,0.00108369]
[1732952059125,0.3608,96850.0,96812.0,0.00108369]
[1732952059334,0.3608,96839.0,96829.0,0.18592724]
[1732952059518,0.0642,96842.0,96835.0,0.05161]
[1732952059519,0.051611,96836.0,96835.0,0.05161]
[1732952060020,0.115807,96842.0,96840.0,0.051608]
[1732952060311,0.3608,96850.0,96842.0,0.051607]
[1732952060503,0.36156,96850.0,96842.0,0.36819268]
[1732952060706,0.3608,96850.0,96842.0,0.36819268]
[1732952061014,0.3608,96850.0,96842.0,0.182407]
[1732952061519,0.412403,96850.0,96842.0,0.182407]
[1732952062228,0.00654944,96843.0,96842.0,0.183407]
[1732952062436,0.00954944,96843.0,96842.0,0.184407]
[1732952063137,0.00954944,96843.0,96842.0,0.545207]
[1732952065042,0.008,96843.0,96842.0,0.545207]
[1732952066837,0.008,96843.0,96842.0,0.55769429]
[1732952067637,0.008,96843.0,96842.0,0.002]
[1732952067842,0.0412,96843.0,96842.0,0.13276]
[1732952068041,0.0412,96843.0,96842.0,0.002]
[1732952075533,0.092806,96843.0,96842.0,0.002]
[1732952082530,0.051616,96825.0,96824.0,0.13064]
[1732952082737,0.051618,96820.0,96819.0,0.001549]
[1732952082930,0.051618,96820.0,96819.0,0.01351114]
[1732952083125,0.051618,96820.0,96818.0,0.13064]
[1732952083629,0.051618,96820.0,96810.0,0.10542986]
[1732952083630,0.051622,96814.0,96810.0,0.10542986]
[1732952083833,0.051622,96814.0,96803.0,0.3608]
[1732952083834,0.051622,96814.0,96813.0,0.13064]
[1732952084033,0.051622,96814.0,96810.0,0.01237957]
[1732952085034,0.051622,96814.0,96812.0,0.00108369]
[1732952100144,0.3608,96813.0,96812.0,0.00108369]
[1732952101555,0.3608,96813.0,96812.0,8.369e-05]
[1732952101857,0.3608,96813.0,96812.0,0.00108369]
[1732952112365,0.3608,96813.0,96812.0,0.18656374]
[1732952113272,0.3608,96813.0,96812.0,0.00108369]
[1732952114671,0.3608,96813.0,96812.0,0.18706512]
[1732952114858,0.3608,96813.0,96812.0,0.00108369]
[1732952115965,0.051622,96814.0,96813.0,0.051622]
[1732952116669,0.3608,96815.0,96813.0,0.051622]
[1732952116962,0.3608,96815.0,96814.0,0.18597945]
[1732952117164,0.3608,96815.0,96813.0,0.23760145]
[1732952117371,0.3608,96815.0,96814.0,0.18597945]
[1732952117372,0.412421,96815.0,96814.0,0.18597945]
[1732952117564,0.412421,96815.0,96813.0,0.23860145]
[1732952118670,0.412421,96815.0,96813.0,0.23760145]
[1732952120160,0.412421,96815.0,96813.0,0.23860145]
[1732952120561,0.412421,96815.0,96814.0,0.18597945]
[1732952120961,0.412421,96815.0,96813.0,0.052622]
[1732952121365,0.412421,96815.0,96814.0,0.18597279]
[1732952121560,0.412421,96815.0,96813.0,0.052622]
[1732952121760,0.412421,96815.0,96813.0,0.051622]
[1732952121970,0.413421,96815.0,96813.0,0.051622]
[1732952122759,0.412421,96815.0,96813.0,0.051622]
[1732952123372,0.412421,96815.0,96813.0,0.052622]
[1732952125675,0.3608,96815.0,96813.0,0.052622]
[1732952126565,0.051619,96820.0,96818.0,0.051619]
[1732952126763,0.051619,96820.0,96813.0,0.001]
[1732952126764,0.0311,96823.0,96815.0,0.24794404]
[1732952126969,0.0311,96823.0,96813.0,0.001]
[1732952126970,0.0311,96823.0,96821.0,0.051618]
[1732952127171,0.0311,96823.0,96822.0,0.24794404]
[1732952127368,0.1306,96838.0,96820.0,0.24794404]
[1732952127574,0.051613,96831.0,96826.0,0.23746885]
[1732952127763,0.051614,96828.0,96826.0,0.23746885]
[1732952128376,0.051614,96828.0,96826.0,0.051615]
[1732952129678,0.051611,96834.0,96826.0,0.051615]
[1732952129878,0.051612,96832.0,96826.0,0.051615]
[1732952130077,0.3648,96827.0,96826.0,0.051615]
[1732952130382,0.3668,96827.0,96826.0,0.051615]
[1732952130765,0.3668,96827.0,96826.0,0.23746885]
[1732952131481,0.3668,96827.0,96826.0,0.051615]
[1732952131680,0.3668,96827.0,96826.0,0.182215]
[1732952131982,0.006,96827.0,96826.0,0.182215]
[1732952134584,0.006,96827.0,96826.0,0.36778436]
[1732952134778,0.006,96827.0,96826.0,0.182215]
[1732952135479,0.006,96827.0,96826.0,0.36775825]
[1732952135685,0.006,96827.0,96826.0,0.36775772]
[1732952136589,0.006,96827.0,96826.0,0.182215]
[1732952149489,0.006,96827.0,96826.0,0.543015]
[1732952150001,0.006,96827.0,96826.0,0.182215]
[1732952150290,0.006,96827.0,96826.0,0.3677539]
[1732952150498,0.006,96827.0,96826.0,0.412415]
[1732952150798,0.006,96827.0,96826.0,0.542935]
[1732952151399,0.006,96827.0,96826.0,0.7284739]
[1732952151600,0.006,96827.0,96826.0,0.542935]
[1732952153401,0.006,96827.0,96826.0,0.7284739]
[1732952154400,0.006,96827.0,96826.0,0.542935]
[1732952155792,0.006,96827.0,96826.0,0.79087904]
[1732952156192,0.006,96827.0,96826.0,0.542935]
[1732952158004,0.002,96827.0,96826.0,0.542935]
[1732952158205,0.004,96827.0,96826.0,0.542935]
[1732952159802,0.003,96827.0,96826.0,0.542935]
[1732952160305,0.0301,96851.0,96826.0,1.37575721]
[1732952160494,0.0301,96851.0,96850.0,0.051602]
[1732952161396,0.051601,96853.0,96850.0,0.051602]
[1732952162200,0.002,96851.0,96850.0,0.052602]
[1732952163504,0.007,96851.0,96850.0,0.052602]
[1732952163709,0.005,96851.0,96850.0,0.052602]
[1732952164202,0.005,96851.0,96850.0,0.051602]
[1732952164401,0.005,96851.0,96850.0,0.052602]
[1732952164909,0.051601,96853.0,96850.0,0.001]
[1732952165108,0.051601,96853.0,96851.0,0.051602]
[1732952166096,0.0627,96858.0,96851.0,0.051602]
[1732952166810,0.3658,96852.0,96851.0,0.051602]
[1732952167005,0.051602,96851.0,96849.0,0.051603]
[1732952168196,0.3658,96852.0,96849.0,0.051603]
[1732952168197,0.3608,96852.0,96849.0,0.051603]
[1732952168510,0.004,96851.0,96849.0,0.051603]
[1732952169304,0.3608,96852.0,96849.0,0.051603]
[1732952169608,0.3648,96852.0,96849.0,0.051603]
[1732952169805,0.3648,96852.0,96847.0,0.1304]
[1732952170010,0.3648,96852.0,96850.0,0.051602]
[1732952170401,0.3648,96852.0,96851.0,0.051602]
[1732952171307,0.3608,96852.0,96851.0,0.051602]
[1732952171511,0.0627,96858.0,96851.0,0.3618]
[1732952171703,0.0627,96858.0,96856.0,0.051599]
[1732952172006,0.0627,96858.0,96857.0,0.051599]
[1732952172909,0.0677,96858.0,96857.0,0.051599]
[1732952174302,0.119298,96858.0,96857.0,0.052599]
[1732952175306,0.119298,96858.0,96857.0,0.001]
[1732952186624,0.051601,96852.0,96851.0,0.1304]
[1732952187421,0.051601,96852.0,96851.0,0.31620858]
[1732952187922,0.051601,96852.0,96851.0,0.1304]
[1732952188424,0.055601,96852.0,96851.0,0.31620858]
[1732952189326,0.004,96852.0,96849.0,0.24774477]
[1732952189527,0.004,96852.0,96844.0,0.051606]
[1732952189528,0.051602,96851.0,96850.0,0.1304]
[1732952190023,0.051602,96851.0,96850.0,0.31612281]
[1732952190218,0.005,96852.0,96850.0,0.1304]
[1732952190427,0.051602,96851.0,96850.0,0.1304]
[1732952190827,0.051604,96847.0,96846.0,0.25978084]
[1732952191130,0.051604,96847.0,96846.0,0.39018084]
[1732952191321,0.051604,96847.0,96846.0,0.25978084]
[1732952191522,0.051604,96847.0,96846.0,0.39018084]
[1732952192325,0.051604,96847.0,96846.0,0.39008638]
[1732952193129,0.051604,96847.0,96846.0,0.25968638]
[1732952193332,0.051604,96847.0,96846.0,0.39008638]
[1732952193735,0.054604,96847.0,96846.0,0.39008638]
[1732952193938,0.054604,96847.0,96846.0,0.01203607]
[1732952194233,0.054604,96847.0,96846.0,0.1304]
[1732952195736,0.003,96847.0,96845.0,0.051605]
[1732952196037,0.051605,96846.0,96845.0,0.051605]
[1732952196236,0.051605,96846.0,96845.0,0.182005]
[1732952197929,0.054605,96846.0,96845.0,0.182005]
[1732952200138,0.051605,96846.0,96845.0,0.182005]
[1732952200335,0.003,96846.0,96845.0,0.49168596]
[1732952200847,0.003,96846.0,96845.0,0.182005]
[1732952201137,0.003,96846.0,96845.0,0.49168596]
[1732952201841,0.003,96846.0,96845.0,0.182005]
[1732952202139,0.003,96846.0,96845.0,0.49168596]
[1732952202444,0.002,96846.0,96845.0,0.49168596]
[1732952203239,0.001,96846.0,96845.0,0.6539349]
[1732952203833,0.051603,96849.0,96845.0,0.6023299]
[1732952204033,0.051603,96849.0,96846.0,0.36127094]
[1732952204431,0.051603,96849.0,96846.0,0.30966694]
[1732952204637,0.051603,96849.0,96847.0,0.051604]
[1732952207648,0.053603,96849.0,96847.0,0.051604]
[1732952208143,0.002,96849.0,96847.0,0.051604]
[1732952209042,0.0627,96858.0,96847.0,0.30966694]
[1732952209355,0.54570939,96960.0,96857.0,0.24774939]
[1732952209356,0.00234895,96878.0,96857.0,0.24774939]
[1732952209547,0.05159,96874.0,96873.0,0.18580728]
[1732952209839,0.05159,96874.0,96871.0,0.181871]
[1732952210340,0.05159,96874.0,96872.0,0.18564167]
[1732952210543,0.05159,96874.0,96873.0,0.18564167]
[1732952210740,0.05159,96874.0,96873.0,0.19463975]
[1732952211241,0.05159,96874.0,96873.0,0.009]
[1732952211829,0.05159,96874.0,96873.0,0.19463975]
[1732952212029,0.05159,96874.0,96873.0,0.20363975]
[1732952212230,0.05159,96874.0,96873.0,0.009]
[1732952213648,0.05159,96874.0,96873.0,0.018]
[1732952215640,0.05159,96874.0,96873.0,0.03033754]
[1732952217840,0.00154895,96878.0,96873.0,0.03033754]
[1732952218042,0.00154895,96878.0,96875.0,0.051589]
[1732952218043,0.05313695,96878.0,96875.0,0.051589]
[1732952219345,0.05313695,96878.0,96875.0,0.060589]
[1732952219944,0.05313695,96878.0,96875.0,0.069589]
[1732952220753,0.05313695,96878.0,96875.0,0.018]
[1732952221050,0.05313695,96878.0,96876.0,0.051589]
[1732952222245,0.05313695,96878.0,96876.0,0.060589]
[1732952222450,0.05313695,96878.0,96877.0,0.051588]
[1732952223149,0.00154895,96878.0,96877.0,0.051588]
[1732952224842,0.00154895,96878.0,96877.0,0.060588]
[1732952225243,0.00154895,96878.0,96877.0,0.069588]
[1732952226747,0.0611,96889.0,96888.0,0.051582]
[1732952227951,0.0611,96889.0,96888.0,0.060582]
[1732952228253,0.0611,96889.0,96888.0,0.066582]
[1732952228957,0.0611,96889.0,96888.0,0.061582]
[1732952228958,0.0661,96889.0,96888.0,0.061582]
[1732952229640,0.0661,96889.0,96888.0,0.053582]
[1732952231251,0.051573,96905.0,96890.0,0.051581]
[1732952231451,0.051573,96905.0,96899.0,0.051576]
[1732952231452,0.0306,96905.0,96899.0,0.051576]
[1732952231753,0.36234831,96909.0,96908.0,0.051572]
[1732952231956,0.36234831,96909.0,96908.0,0.181732]
[1732952234350,0.36234831,96909.0,96908.0,0.187732]
[1732952235148,0.36234831,96909.0,96908.0,0.196732]
[1732952235354,0.36234831,96909.0,96908.0,0.20898178]
[1732952237256,0.00154831,96909.0,96908.0,0.20898178]
[1732952243052,0.3608,96915.0,96913.0,0.051569]
[1732952244363,0.051566,96918.0,96913.0,0.056569]
[1732952244565,0.051566,96918.0,96913.0,0.24220875]
[1732952244861,0.051566,96918.0,96914.0,0.18563975]
[1732952245249,0.051566,96918.0,96915.0,0.18563975]
[1732952245455,0.051566,96918.0,96916.0,0.13012]
[1732952247262,0.051566,96918.0,96916.0,0.13412]
[1732952248365,0.051566,96918.0,96916.0,0.31975975]
[1732952248659,0.051566,96918.0,96917.0,0.18563975]
[1732952248862,0.051566,96918.0,96916.0,0.14312]
[1732952249750,0.051566,96918.0,96917.0,0.009]
[1732952249952,0.0633,96919.0,96917.0,0.009]
[1732952250464,0.0633,96919.0,96917.0,0.013]
[1732952251064,0.0633,96919.0,96917.0,0.009]
[1732952251263,0.0633,96919.0,96917.0,0.003]
[1732952251567,0.051566,96918.0,96917.0,0.003]
[1732952252064,0.051566,96918.0,96917.0,0.011]
[1732952252662,0.051566,96918.0,96917.0,0.19663975]
[1732952252863,0.051566,96918.0,96917.0,0.003]
[1732952253064,0.051566,96918.0,96917.0,0.012]
[1732952253463,0.051566,96918.0,96917.0,0.013]
[1732952254463,0.051567,96917.0,96916.0,0.37786305]
[1732952254766,0.051567,96917.0,96916.0,0.37647429]
[1732952254971,0.051567,96917.0,96916.0,0.13012]
[1732952255762,0.051567,96917.0,96916.0,0.13112]
[1732952256967,0.051567,96917.0,96916.0,0.44078694]
[1732952257168,0.051567,96917.0,96916.0,0.91239576]
[1732952257665,0.0332,96931.0,96916.0,0.91092239]
[1732952257871,0.051561,96928.0,96927.0,0.18491318]
[1732952258271,0.0609,96930.0,96924.0,0.37655091]
[1732952258467,0.05156,96929.0,96928.0,0.18496536]
[1732952258674,0.051563,96925.0,96924.0,0.37655091]
[1732952259370,0.051563,96925.0,96924.0,0.13]
[1732952259873,0.051563,96925.0,96924.0,0.131]
[1732952260775,0.051563,96925.0,96924.0,0.132]
[1732952261272,0.051563,96925.0,96924.0,0.91078157]
[1732952261468,0.051563,96925.0,96924.0,0.91178157]
[1732952262170,0.051563,96925.0,96924.0,0.132]
[1732952266273,0.051563,96925.0,96924.0,0.37890194]
[1732952266470,0.051563,96925.0,96924.0,0.132]
[1732952266676,0.051563,96925.0,96924.0,0.37890194]
[1732952267074,0.051563,96925.0,96924.0,0.132]
[1732952270678,0.0332,96931.0,96924.0,0.4928]
[1732952270679,0.051559,96931.0,96924.0,0.4928]
[1732952270978,0.051558,96934.0,96928.0,0.051561]
[1732952271172,0.051558,96934.0,96927.0,0.24690194]
[1732952271173,0.051558,96934.0,96929.0,0.29846194]
[1732952271478,0.051558,96934.0,96931.0,0.24690194]
[1732952271672,0.051558,96934.0,96932.0,0.13]
[1732952271878,0.051558,96934.0,96932.0,0.73770194]
[1732952272082,0.051558,96934.0,96933.0,0.24690194]
[1732952272281,0.051558,96934.0,96932.0,0.73822194]
[1732952272577,0.051558,96934.0,96933.0,0.37690194]
[1732952273083,0.051558,96934.0,96933.0,0.13]
[1732952273278,0.051558,96934.0,96933.0,0.139]
[1732952275280,0.051558,96934.0,96933.0,0.147]
[1732952279575,0.051558,96934.0,96933.0,0.33194599]
[1732952279781,0.051558,96934.0,96933.0,0.34410859]
[1732952280578,0.051558,96934.0,96933.0,0.1591226]
[1732952285679,0.051558,96934.0,96933.0,0.17976249]
[1732952287985,0.051558,96934.0,96933.0,0.04980249]
[1732952288183,0.051558,96934.0,96933.0,0.17968249]
[1732952292181,0.051558,96934.0,96933.0,0.04980249]
[1732952292391,0.051558,96934.0,96933.0,0.0291626]
[1732952292787,0.051568,96915.0,96914.0,0.24690194]
[1732952292983,0.412368,96915.0,96911.0,0.01209363]
[1732952293178,0.065,96914.0,96911.0,0.01209363]
[1732952294895,0.069,96914.0,96911.0,0.01209363]
[1732952295192,0.077,96914.0,96913.0,0.00254756]
[1732952295885,0.1089,96914.0,96913.0,0.00254756]
[1732952304890,0.1089,96914.0,96913.0,0.001]
[1732952305993,0.012,96914.0,96913.0,0.001]
[1732952314503,0.3608,96926.0,96913.0,0.3618]
[1732952314802,0.051566,96920.0,96919.0,0.051564]
[1732952314996,0.051566,96920.0,96919.0,0.181444]
[1732952315693,0.051566,96920.0,96919.0,0.12988]
[1732952316202,0.059566,96920.0,96919.0,0.13088]
[1732952316502,0.008,96920.0,96919.0,0.13088]
[1732952316804,0.051562,96926.0,96921.0,0.051565]
[1732952317096,0.051562,96926.0,96925.0,0.3608]
[1732952318403,0.051562,96926.0,96925.0,0.3618]
[1732952319303,0.051562,96926.0,96925.0,0.3628]
[1732952321396,0.0622,96941.0,96925.0,0.3628]
[1732952321606,0.0622,96941.0,96934.0,0.3608]
[1732952321799,0.051557,96935.0,96934.0,0.3608]
[1732952323002,0.051557,96935.0,96934.0,0.3698]
[1732952323406,0.051557,96935.0,96934.0,0.3778]
[1732952328099,0.051557,96935.0,96934.0,0.4422]
[1732952328299,0.3608,96950.0,96934.0,0.4422]
[1732952328613,0.0627,96953.0,96944.0,0.3608]
[1732952328912,0.051552,96946.0,96944.0,0.49056]
[1732952330297,0.051552,96946.0,96944.0,0.49556]
[1732952331306,0.051552,96946.0,96944.0,0.50456]
[1732952333310,0.051552,96946.0,96944.0,0.14376]
[1732952339014,0.051552,96946.0,96944.0,0.15628415]
[1732952340310,0.051552,96946.0,96944.0,0.02652415]
[1732952340619,0.051552,96946.0,96945.0,0.12976]
[1732952341210,0.051552,96946.0,96944.0,0.02652415]
[1732952341414,0.051552,96946.0,96944.0,0.014]
[1732952341823,0.051552,96946.0,96945.0,0.009]
[1732952342318,0.051552,96946.0,96945.0,0.014]
[1732952344117,0.051552,96946.0,96945.0,0.005]
[1732952344716,0.051552,96946.0,96945.0,0.014]
[1732952347410,0.051552,96946.0,96945.0,0.065552]
[1732952351827,0.051552,96946.0,96945.0,0.426352]
[1732952355834,0.051552,96946.0,96945.0,0.3748]
[1732952356033,0.051552,96946.0,96945.0,0.50444]
[1732952357429,0.051552,96946.0,96945.0,0.3748]
[1732952357629,0.051552,96946.0,96945.0,0.50444]
[1732952358426,0.051552,96946.0,96945.0,0.3748]
[1732952358628,0.051552,96946.0,96945.0,0.50444]
[1732952359131,0.051552,96946.0,96945.0,0.3748]
[1732952359330,0.051552,96946.0,96945.0,0.50444]
[1732952361939,0.051552,96946.0,96945.0,0.3748]
[1732952366338,0.051552,96946.0,96945.0,0.014]
[1732952368941,0.051555,96939.0,96926.0,0.60727079]
[1732952369242,0.051555,96939.0,96931.0,0.12964]
[1732952369243,0.051559,96932.0,96931.0,0.12964]
[1732952369833,0.051562,96927.0,96926.0,0.3608]
[1732952370035,0.051562,96927.0,96926.0,0.49044]
[1732952370440,0.051562,96927.0,96926.0,0.12964]
[1732952370643,0.051565,96921.0,96920.0,0.05380586]
[1732952370844,0.051565,96921.0,96920.0,0.14156915]
[1732952371943,0.052565,96921.0,96920.0,0.16320842]
[1732952372742,0.060565,96921.0,96920.0,0.16420842]
[1732952375037,0.060565,96921.0,96920.0,0.03456842]
[1732952375245,0.060565,96921.0,96920.0,0.16424842]
[1732952376445,0.009,96921.0,96920.0,0.16424842]
[1732952377743,0.051555,96939.0,96938.0,0.051556]
[1732952377948,0.051555,96939.0,96938.0,0.3608]
[1732952378148,0.032,96947.0,96938.0,0.3608]
[1732952378345,0.051553,96943.0,96940.0,0.051554]
[1732952378550,0.032,96947.0,96940.0,0.051554]
[1732952378843,0.051555,96940.0,96938.0,0.3608]
[1732952379045,0.051555,96940.0,96938.0,0.3668]
[1732952379251,0.051555,96940.0,96938.0,0.3758]
[1732952379742,0.051555,96940.0,96938.0,0.3668]
[1732952380448,0.051555,96940.0,96938.0,0.49636]
[1732952380751,0.051555,96940.0,96938.0,0.49036]
[1732952380952,0.051551,96947.0,96938.0,0.49036]
[1732952381253,0.051552,96946.0,96944.0,0.051552]
[1732952382338,0.051552,96946.0,96944.0,0.066552]
[1732952389663,0.05155,96949.0,96948.0,0.05155]
[1732952391060,0.05155,96949.0,96948.0,0.06455]
[1732952391454,0.05155,96949.0,96948.0,0.013]
[1732952391648,0.41235,96949.0,96939.0,0.05380586]
[1732952391859,0.0302,96948.0,96939.0,0.05380586]
[1732952392049,0.051555,96940.0,96939.0,0.05380586]
[1732952393658,0.051555,96940.0,96933.0,0.21511961]
[1732952393848,0.051558,96934.0,96933.0,0.21511961]
[1732952394959,0.051558,96934.0,96933.0,0.22714363]
[1732952395350,0.051558,96934.0,96933.0,0.23514363]
[1732952396763,0.052558,96934.0,96933.0,0.24414363]
[1732952398356,0.052558,96934.0,96933.0,0.11458363]
[1732952398553,0.052558,96934.0,96933.0,0.24414363]
[1732952398762,0.001,96934.0,96933.0,0.32890163]
[1732952399155,0.49036,96962.0,96933.0,0.63814363]
[1732952399462,0.05155,96949.0,96948.0,0.05380586]
[1732952399649,0.05155,96949.0,96947.0,0.3608]
[1732952399856,0.3608,96962.0,96945.0,0.12956]
[1732952400155,0.36152,96962.0,96944.0,0.12956]
[1732952400355,0.3608,96962.0,96944.0,0.12956]
[1732952400551,0.051552,96945.0,96944.0,0.12956]
[1732952401766,0.051552,96945.0,96944.0,0.13456]
[1732952401968,0.052552,96945.0,96944.0,0.14356]
[1732952402868,0.052552,96945.0,96944.0,0.50436]
[1732952405767,0.052552,96945.0,96944.0,0.51650225]
[1732952412267,0.001,96945.0,96944.0,0.56805425]
[1732952413076,0.001,96945.0,96944.0,0.51642225]